bitfinex/quotes_BTCUSD_20220212
["timestamp","ask_amount","ask_price","bid_price","bid_amount"]
[1644677805329,0.04510133,42159.0,42137.0,0.00987]
[1644677805525,0.059339,42157.0,42151.0,0.00987]
[1644677805726,0.005841,42156.0,42140.0,0.3]
[1644677805924,0.005841,42156.0,42151.0,0.00487]
[1644677806328,0.005841,42156.0,42146.0,0.23810872]
[1644677806329,0.20786825,42154.0,42146.0,0.23810872]
[1644677806528,0.005841,42153.0,42148.0,0.00487]
[1644677807028,0.005841,42153.0,42147.0,0.00043522]
[1644677807676,0.005841,42153.0,42147.0,0.0004352]
[1644677807873,0.005841,42153.0,42148.0,0.00487]
[1644677808674,0.005841,42153.0,42147.0,0.05]
[1644677808879,0.005841,42153.0,42147.0,0.0504352]
[1644677809275,0.055841,42153.0,42147.0,0.0504352]
[1644677809476,1.562841,42152.0,42147.0,0.0504352]
[1644677809682,0.04351778,42151.0,42147.0,0.0504352]
[1644677809877,0.049541,42150.0,42147.0,0.05]
[1644677810078,0.049541,42150.0,42147.0,0.10043519]
[1644677810280,0.005841,42148.0,42147.0,0.15043519]
[1644677811178,0.005841,42148.0,42147.0,0.15]
[1644677812137,0.005841,42148.0,42147.0,0.2]
[1644677816880,0.000841,42148.0,42147.0,0.2]
[1644677819830,0.050841,42148.0,42147.0,0.2]
[1644677820027,0.000841,42148.0,42147.0,0.2]
[1644677823878,0.24,42156.0,42148.0,0.002523]
[1644677824077,0.24,42156.0,42155.0,0.00487]
[1644677824278,0.24,42156.0,42155.0,0.00438301]
[1644677824676,0.24,42156.0,42155.0,0.49679013]
[1644677825777,0.30252877,42163.0,42156.0,0.85]
[1644677825978,0.03943797,42176.0,42156.0,0.85]
[1644677825979,0.30252877,42165.0,42162.0,0.00438301]
[1644677826182,0.30252877,42168.0,42162.0,0.00438301]
[1644677826432,0.00025893,42174.0,42161.0,0.30921541]
[1644677826433,0.30252877,42172.0,42161.0,0.30921541]
[1644677826632,0.35231905,42174.0,42171.0,0.00438301]
[1644677826633,0.30252877,42173.0,42171.0,0.00438301]
[1644677826931,0.30252877,42173.0,42171.0,0.22490203]
[1644677827235,0.30252877,42173.0,42166.0,0.00438301]
[1644677827432,0.35360603,42175.0,42163.0,0.00438301]
[1644677827433,0.30252877,42168.0,42163.0,0.00438301]
[1644677827631,0.00102805,42175.0,42163.0,0.00438301]
[1644677827632,0.30252877,42167.0,42163.0,0.00438301]
[1644677827830,0.30252877,42168.0,42160.0,0.00438301]
[1644677828231,0.059311,42177.0,42166.0,0.24807829]
[1644677828232,0.30252877,42169.0,42166.0,0.24807829]
[1644677828431,0.00043603,42169.0,42166.0,0.24807829]
[1644677829032,0.24,42168.0,42166.0,0.24807829]
[1644677831379,0.29,42168.0,42166.0,0.00438301]
[1644677831980,0.24,42168.0,42166.0,0.00438301]
[1644677832577,0.24,42168.0,42166.0,0.20987911]
[1644677834130,0.24,42168.0,42167.0,0.31994028]
[1644677834332,0.00043604,42169.0,42168.0,0.85]
[1644677834529,0.00043604,42169.0,42168.0,1.1560665]
[1644677835035,0.00043604,42169.0,42168.0,1.44505837]
[1644677835329,0.00025893,42180.0,42178.0,0.19881111]
[1644677835529,0.00235893,42181.0,42179.0,0.00438301]
[1644677835730,0.0021,42181.0,42179.0,0.00438301]
[1644677836529,0.0021,42181.0,42169.0,0.7111]
[1644677836832,0.00235893,42181.0,42173.0,0.00438301]
[1644677837430,0.00235893,42181.0,42173.0,0.22236746]
[1644677837881,0.00043846,42179.0,42173.0,0.22236746]
[1644677838479,0.00043846,42179.0,42173.0,0.00438301]
[1644677838681,0.00043846,42179.0,42166.0,0.1]
[1644677838882,0.28946401,42181.0,42166.0,0.1]
[1644677838883,0.63727146,42181.0,42166.0,0.1]
[1644677839081,0.04949103,42179.0,42166.0,0.10438301]
[1644677839280,0.04949103,42179.0,42173.0,0.304]
[1644677839281,0.0437,42178.0,42173.0,0.304]
[1644677839481,0.09949103,42179.0,42173.0,0.30838301]
[1644677839482,0.05,42179.0,42173.0,0.30838301]
[1644677839681,0.34,42179.0,42173.0,0.30838301]
[1644677839880,0.29,42179.0,42173.0,0.30838301]
[1644677840080,0.34,42179.0,42173.0,0.30838301]
[1644677840482,0.34,42179.0,42177.0,0.0632079]
[1644677840681,0.29,42179.0,42177.0,0.0632079]
[1644677841522,0.24,42179.0,42177.0,0.0632079]
[1644677841723,0.24,42179.0,42178.0,0.00438301]
[1644677842125,0.24,42179.0,42177.0,0.0632079]
[1644677842928,0.24,42179.0,42173.0,0.304]
[1644677843325,0.34,42179.0,42173.0,0.304]
[1644677844127,0.00044122,42178.0,42173.0,0.304]
[1644677844325,0.23268992,42174.0,42173.0,0.21676076]
[1644677844525,0.00044122,42178.0,42173.0,0.21676076]
[1644677844923,0.44,42179.0,42173.0,0.21676076]
[1644677845190,0.00044123,42178.0,42173.0,0.21676076]
[1644677845486,0.12648878,42177.0,42173.0,0.21676076]
[1644677845679,0.12648878,42177.0,42173.0,0.1139368]
[1644677845680,0.04561699,42174.0,42173.0,0.1139368]
[1644677845977,0.0437,42174.0,42173.0,0.1139368]
[1644677846177,0.0937,42174.0,42173.0,0.1139368]
[1644677846378,0.34251294,42174.0,42173.0,0.1139368]
[1644677846780,0.44251294,42174.0,42173.0,0.1139368]
[1644677847179,0.48799261,42174.0,42173.0,0.1139368]
[1644677847378,1.74499261,42174.0,42173.0,0.1139368]
[1644677848083,0.44251294,42174.0,42173.0,0.1139368]
[1644677849326,0.44251294,42174.0,42173.0,0.4179368]
[1644677849527,0.1437,42174.0,42173.0,0.4179368]
[1644677850928,0.0937,42174.0,42173.0,0.4179368]
[1644677851127,0.1437,42174.0,42173.0,0.4179368]
[1644677851329,0.3786403,42174.0,42173.0,0.4179368]
[1644677851729,0.4786403,42174.0,42173.0,0.4179368]
[1644677852532,0.4349403,42174.0,42173.0,0.4179368]
[1644677853978,0.4942573,42174.0,42173.0,0.4179368]
[1644677854377,0.3,42173.0,42159.0,0.66866037]
[1644677854578,0.3,42173.0,42160.0,0.06606201]
[1644677854779,0.4942573,42174.0,42160.0,0.07044502]
[1644677854979,0.24634508,42167.0,42160.0,0.07044502]
[1644677855179,0.24634508,42167.0,42160.0,0.00438301]
[1644677855378,0.34634508,42167.0,42160.0,0.00438301]
[1644677857227,0.34634508,42167.0,42154.0,0.709]
[1644677857427,0.34634508,42167.0,42151.0,0.72468301]
[1644677857626,0.34634508,42167.0,42152.0,0.28933045]
[1644677857829,0.34634508,42167.0,42151.0,0.00438301]
[1644677857830,0.44634508,42167.0,42151.0,0.00438301]
[1644677858228,0.44634508,42167.0,42156.0,0.07686567]
[1644677858229,0.19725025,42159.0,42156.0,0.07686567]
[1644677858633,0.1945582,42159.0,42156.0,0.07686567]
[1644677858829,0.1945582,42159.0,42156.0,0.00438301]
[1644677859030,0.1945582,42159.0,42153.0,0.2691414]
[1644677859230,0.1945582,42159.0,42156.0,0.00438301]
[1644677859529,0.1945582,42159.0,42152.0,0.00438301]
[1644677859732,0.2945582,42159.0,42148.0,0.002523]
[1644677859930,0.2945582,42159.0,42149.0,0.00438301]
[1644677860188,0.2945582,42159.0,42154.0,0.00438301]
[1644677861285,0.2945582,42159.0,42156.0,0.00438301]
[1644677861482,0.2945582,42159.0,42149.0,0.48391638]
[1644677861682,0.2945582,42159.0,42151.0,0.00438301]
[1644677862283,0.2945582,42159.0,42148.0,0.002523]
[1644677862484,0.0437,42158.0,42148.0,0.002523]
[1644677862682,0.0937,42158.0,42148.0,0.002523]
[1644677862982,0.0437,42158.0,42148.0,0.002523]
[1644677863381,0.21841386,42152.0,42148.0,0.002523]
[1644677863584,0.103035,42158.0,42151.0,0.00438301]
[1644677863789,0.453035,42158.0,42148.0,0.002523]
[1644677864331,0.16405536,42154.0,42148.0,0.002523]
[1644677864532,0.04534936,42150.0,42148.0,0.002523]
[1644677864733,0.26833988,42149.0,42148.0,0.002523]
[1644677865131,0.31833988,42149.0,42148.0,0.002523]
[1644677865329,0.46833988,42149.0,42148.0,0.002523]
[1644677865934,0.76244605,42149.0,42148.0,0.002523]
[1644677866436,2.01944605,42149.0,42148.0,0.002523]
[1644677867534,2.08449226,42149.0,42148.0,0.002523]
[1644677867785,2.28613748,42149.0,42148.0,0.002523]
[1644677867986,0.85,42148.0,42147.0,0.2]
[1644677868186,2.52726834,42148.0,42147.0,0.2]
[1644677868383,2.62726834,42148.0,42147.0,0.2]
[1644677870587,2.313863,42148.0,42147.0,0.2]
[1644677872432,1.257,42146.0,42145.0,0.00043361]
[1644677872632,0.24809672,42138.0,42132.0,0.025]
[1644677872832,0.05,42137.0,42132.0,0.025]
[1644677873631,0.05,42137.0,42133.0,0.06566726]
[1644677874037,0.05,42137.0,42134.0,0.00043366]
[1644677874835,0.05,42137.0,42134.0,0.23636731]
[1644677875035,0.05,42137.0,42134.0,0.23593365]
[1644677875278,0.05,42137.0,42135.0,0.0769035]
[1644677875477,0.05,42137.0,42134.0,0.23634615]
[1644677875680,0.05,42137.0,42134.0,0.24099679]
[1644677875885,0.0475,42143.0,42136.0,0.39035551]
[1644677876080,0.20160518,42153.0,42136.0,0.39035551]
[1644677876081,0.20160518,42157.0,42136.0,0.39000615]
[1644677876279,0.29495,42159.0,42136.0,0.39000615]
[1644677876479,0.29495,42159.0,42137.0,0.00041249]
[1644677876681,0.23323111,42150.0,42142.0,0.24003062]
[1644677876882,0.23323111,42150.0,42146.0,0.07357202]
[1644677876883,0.29258011,42150.0,42146.0,0.07357202]
[1644677877079,0.29258011,42150.0,42142.0,0.24003062]
[1644677877281,0.29258011,42150.0,42143.0,0.23620499]
[1644677877581,0.059349,42150.0,42143.0,0.23661746]
[1644677877783,0.05954439,42151.0,42146.0,0.05]
[1644677877784,0.00020139,42151.0,42146.0,0.05]
[1644677877983,0.00020139,42151.0,42143.0,0.23661746]
[1644677877984,0.00020139,42151.0,42143.0,0.53661746]
[1644677878184,0.00020139,42151.0,42149.0,0.05]
[1644677878383,0.00020139,42151.0,42144.0,0.5]
[1644677878582,0.00020139,42151.0,42144.0,0.3]
[1644677878784,0.00020139,42151.0,42145.0,0.12705154]
[1644677879030,0.00020139,42151.0,42147.0,0.045]
[1644677879233,0.00020139,42151.0,42149.0,0.045]
[1644677879832,0.00020139,42151.0,42149.0,0.29884524]
[1644677880034,0.00020139,42151.0,42149.0,0.25384524]
[1644677881440,0.00020139,42151.0,42150.0,0.29444106]
[1644677882044,0.00020139,42151.0,42150.0,0.62543606]
[1644677882242,0.00015055,42171.0,42150.0,1.75738606]
[1644677882442,0.00015055,42171.0,42170.0,0.07245507]
[1644677883080,0.00015055,42171.0,42163.0,0.24426037]
[1644677883679,0.00015055,42171.0,42160.0,0.3]
[1644677883680,0.00026304,42170.0,42167.0,2.52834369]
[1644677883984,0.00026304,42170.0,42163.0,0.07533787]
[1644677884181,0.26798516,42170.0,42163.0,0.07533787]
[1644677884380,0.05026304,42170.0,42163.0,0.07533787]
[1644677884585,0.04936809,42170.0,42162.0,0.07837001]
[1644677884781,0.05,42169.0,42162.0,0.07837001]
[1644677885181,0.00026304,42170.0,42162.0,0.07837001]
[1644677885681,0.24,42169.0,42162.0,0.36295843]
[1644677885881,0.29,42169.0,42162.0,0.07837001]
[1644677886082,0.34,42169.0,42163.0,0.30252392]
[1644677887135,0.34,42169.0,42167.0,0.20654283]
[1644677887331,0.34,42169.0,42163.0,0.30252392]
[1644677887533,0.34,42169.0,42162.0,0.07837001]
[1644677888333,0.26551752,42167.0,42162.0,0.07837001]
[1644677888537,0.26551752,42167.0,42158.0,0.25104599]
[1644677888735,0.26551752,42167.0,42158.0,0.20604599]
[1644677889134,0.34,42169.0,42158.0,0.20604599]
[1644677889637,0.34,42169.0,42161.0,0.07545366]
[1644677891381,0.34,42169.0,42154.0,0.0475]
[1644677891382,0.20519001,42164.0,42154.0,0.0475]
[1644677891582,0.20519001,42164.0,42148.0,0.09294938]
[1644677891781,0.20519001,42164.0,42151.0,0.045]
[1644677891782,0.30519001,42164.0,42151.0,0.045]
[1644677891981,0.24,42169.0,42152.0,0.330995]
[1644677892185,0.00190849,42167.0,42156.0,0.2120181]
[1644677892579,0.00190849,42167.0,42157.0,0.330995]
[1644677893181,0.00011197,42167.0,42158.0,0.330995]
[1644677893381,0.00011197,42167.0,42157.0,0.23318329]
[1644677893582,0.00011197,42167.0,42161.0,0.08567053]
[1644677894428,0.00011197,42167.0,42156.0,0.2120181]
[1644677894628,0.00011197,42167.0,42150.0,0.33718631]
[1644677894833,0.00011197,42167.0,42150.0,0.43718631]
[1644677895428,0.00011197,42167.0,42152.0,0.20716756]
[1644677895630,0.00160513,42167.0,42161.0,0.08305403]
[1644677896430,0.00160513,42167.0,42157.0,0.30423832]
[1644677896629,0.00011197,42167.0,42157.0,0.30423832]
[1644677897029,0.55503219,42169.0,42159.0,0.26901785]
[1644677897228,0.55503219,42169.0,42160.0,0.30535055]
[1644677897229,0.34011284,42169.0,42160.0,0.30535055]
[1644677897692,0.34011284,42169.0,42165.0,0.08947313]
[1644677898486,0.34011284,42169.0,42166.0,0.25205157]
[1644677898687,0.34011284,42169.0,42166.0,0.53516006]
[1644677898885,0.34011284,42169.0,42166.0,0.25205157]
[1644677899089,0.34011284,42169.0,42166.0,0.53255286]
[1644677899286,0.24011284,42169.0,42166.0,0.25205157]
[1644677899486,0.24011284,42169.0,42167.0,0.62129468]
[1644677899691,0.24011284,42169.0,42168.0,0.31709697]
[1644677899886,0.00044916,42170.0,42169.0,0.21255044]
[1644677900091,0.00044916,42170.0,42169.0,0.53595718]
[1644677900288,0.0021,42180.0,42169.0,0.53595718]
[1644677900487,0.00044915,42172.0,42169.0,0.53595718]
[1644677900687,0.00044915,42172.0,42170.0,0.07195354]
[1644677901565,0.00179631,42179.0,42174.0,0.23733312]
[1644677901762,0.00179631,42179.0,42170.0,0.17195354]
[1644677902562,0.0021,42180.0,42170.0,0.17195354]
[1644677902768,0.0021,42180.0,42172.0,0.24522434]
[1644677903163,0.24212497,42186.0,42172.0,0.24522434]
[1644677903364,0.00026166,42183.0,42172.0,0.24522434]
[1644677903564,0.28881799,42186.0,42179.0,0.08486155]
[1644677903765,0.00026166,42185.0,42179.0,0.08486155]
[1644677903965,0.00026166,42186.0,42172.0,0.24522434]
[1644677904165,0.29937618,42187.0,42172.0,0.24522434]
[1644677904364,0.00026166,42186.0,42172.0,0.24522434]
[1644677904566,0.20160518,42186.0,42172.0,0.24522434]
[1644677904765,0.48456238,42186.0,42172.0,0.24522434]
[1644677905065,0.2829572,42186.0,42175.0,0.08168389]
[1644677905292,0.00045211,42181.0,42175.0,0.08168389]
[1644677906185,0.19505729,42180.0,42175.0,0.08168389]
[1644677906585,0.19550941,42180.0,42175.0,0.08168389]
[1644677907186,0.43550941,42180.0,42175.0,0.08168389]
[1644677907391,0.43505729,42180.0,42175.0,0.08168389]
[1644677907686,0.43550941,42180.0,42175.0,0.08168389]
[1644677907891,0.43550941,42180.0,42170.0,0.1]
[1644677908387,0.43550941,42180.0,42169.0,0.21255044]
[1644677908388,0.19550941,42180.0,42169.0,0.21255044]
[1644677908590,0.19505729,42180.0,42169.0,0.21255044]
[1644677908930,0.00045213,42177.0,42176.0,0.06636283]
[1644677909131,0.00045213,42177.0,42169.0,0.21255044]
[1644677909532,0.00045213,42177.0,42163.0,0.2178]
[1644677909734,0.05,42179.0,42163.0,0.2178]
[1644677909735,0.0475,42176.0,42163.0,0.2178]
[1644677910133,0.05,42175.0,42157.0,0.5459]
[1644677910330,0.00045215,42172.0,42167.0,0.06954247]
[1644677910533,0.24059248,42170.0,42161.0,0.20394576]
[1644677910732,0.29059248,42170.0,42161.0,0.20394576]
[1644677910933,0.29059248,42170.0,42157.0,0.5459]
[1644677911133,0.29059248,42170.0,42155.0,0.679]
[1644677911337,0.29104463,42170.0,42154.0,0.2116]
[1644677911534,0.24087997,42163.0,42160.0,0.07649319]
[1644677911737,0.24087997,42163.0,42154.0,0.2116]
[1644677911938,0.24087997,42163.0,42153.0,0.22477258]
[1644677912786,0.24087997,42163.0,42155.0,0.08285707]
[1644677914588,0.24087997,42163.0,42155.0,0.06888049]
[1644677914890,0.00180853,42167.0,42155.0,0.06888049]
[1644677915294,8.53e-06,42167.0,42161.0,0.05]
[1644677915491,0.00045211,42170.0,42165.0,0.05]
[1644677915695,0.00045211,42170.0,42167.0,0.07867858]
[1644677915892,0.00026166,42181.0,42167.0,0.07867858]
[1644677916091,0.3,42182.0,42167.0,0.07867858]
[1644677916289,0.00026166,42181.0,42171.0,0.19534298]
[1644677916534,0.3,42182.0,42171.0,0.19534298]
[1644677916734,0.00026166,42181.0,42171.0,0.19534298]
[1644677916934,0.3,42182.0,42171.0,0.19534298]
[1644677916935,0.30026166,42182.0,42173.0,0.22553978]
[1644677917137,0.00026166,42181.0,42173.0,0.22553978]
[1644677917334,0.3,42182.0,42173.0,0.22553978]
[1644677917534,0.00043087,42178.0,42173.0,0.22553978]
[1644677917735,0.00043087,42178.0,42171.0,0.19534298]
[1644677917935,0.00043087,42178.0,42165.0,0.00043101]
[1644677918135,0.00043087,42178.0,42169.0,0.06962934]
[1644677918337,0.00026166,42181.0,42169.0,0.06962934]
[1644677918535,0.00043089,42174.0,42169.0,0.06962934]
[1644677919035,0.00043089,42174.0,42170.0,0.20756737]
[1644677919534,0.00026166,42181.0,42170.0,0.20756737]
[1644677919737,0.00043089,42174.0,42172.0,0.20601329]
[1644677920192,0.00043089,42174.0,42170.0,0.20756737]
[1644677920587,0.00026166,42181.0,42170.0,0.15756737]
[1644677920792,0.23026166,42182.0,42171.0,0.29024032]
[1644677920993,0.00041859,42174.0,42170.0,0.15756737]
[1644677921189,0.00041859,42174.0,42171.0,0.28367864]
[1644677921388,0.00041859,42174.0,42172.0,0.28254961]
[1644677921788,0.22398597,42178.0,42170.0,0.15756737]
[1644677921989,0.22398597,42178.0,42171.0,0.28327526]
[1644677922194,0.2519605,42187.0,42177.0,0.05]
[1644677922393,0.25292273,42195.0,42181.0,0.85]
[1644677922591,0.25292273,42195.0,42182.0,0.82663537]
[1644677922592,0.00026166,42187.0,42182.0,0.82663537]
[1644677922789,0.001,42195.0,42185.0,0.05]
[1644677922790,0.03336166,42193.0,42185.0,0.05]
[1644677922992,0.00026166,42192.0,42186.0,0.378495]
[1644677923189,0.0331,42193.0,42186.0,0.378495]
[1644677923190,0.03336166,42193.0,42187.0,0.28623203]
[1644677923495,0.00026166,42192.0,42187.0,0.28623203]
[1644677923689,0.03336166,42193.0,42187.0,0.28623203]
[1644677923957,0.03336166,42193.0,42189.0,0.330995]
[1644677924159,0.0331,42193.0,42190.0,0.330995]
[1644677924763,0.0331,42193.0,42189.0,0.0475]
[1644677925561,0.0331,42193.0,42190.0,0.330995]
[1644677925760,0.0331,42193.0,42189.0,0.0475]
[1644677925761,0.0331,42193.0,42191.0,0.29303749]
[1644677925961,0.0331,42193.0,42189.0,0.0475]
[1644677926166,0.0331,42193.0,42190.0,0.330995]
[1644677926360,0.0331,42193.0,42192.0,0.330995]
[1644677926962,0.0331,42193.0,42187.0,0.23873203]
[1644677927365,0.03336166,42193.0,42187.0,0.23873203]
[1644677927988,0.03336166,42193.0,42188.0,0.330995]
[1644677928193,0.0331,42193.0,42192.0,0.330995]
[1644677928388,0.03336166,42193.0,42188.0,0.29295378]
[1644677928591,0.0331,42193.0,42188.0,0.29295378]
[1644677928796,0.001,42196.0,42192.0,0.2]
[1644677928991,0.01,42209.0,42195.0,0.85]
[1644677929292,0.01,42209.0,42196.0,0.8975]
[1644677929293,0.00414156,42202.0,42196.0,0.8975]
[1644677929689,0.00414156,42202.0,42196.0,0.98744452]
[1644677929895,0.00414156,42202.0,42196.0,0.13744452]
[1644677930091,0.00414156,42202.0,42196.0,0.0475]
[1644677930290,0.0031,42202.0,42196.0,0.0475]
[1644677931535,0.0031,42202.0,42200.0,0.08728844]
[1644677931735,0.00255199,42201.0,42196.0,0.00045204]
[1644677932637,0.0021,42201.0,42194.0,0.26496593]
[1644677932838,0.0021,42201.0,42196.0,0.08350446]
[1644677933037,0.00235916,42201.0,42196.0,0.08350446]
[1644677933340,0.00235916,42201.0,42194.0,0.26496593]
[1644677933942,0.0021,42201.0,42192.0,0.0475]
[1644677934140,0.0021,42201.0,42189.0,0.07]
[1644677934141,0.00025916,42200.0,42189.0,0.07]
[1644677934340,0.05025916,42200.0,42189.0,0.07]
[1644677934539,0.00025916,42200.0,42189.0,0.07]
[1644677934938,0.20201426,42197.0,42189.0,0.07]
[1644677935193,0.0021,42201.0,42190.0,0.330995]
[1644677935389,0.00025914,42200.0,42190.0,0.330995]
[1644677935589,0.00025914,42200.0,42189.0,0.07]
[1644677935789,0.00025914,42200.0,42192.0,0.069989]
[1644677935989,0.00025914,42200.0,42189.0,0.07]
[1644677936189,0.23692624,42197.0,42189.0,0.07]
[1644677936595,0.23692624,42197.0,42192.0,0.00045255]
[1644677936797,0.0975,42196.0,42192.0,0.00045255]
[1644677936991,0.0975,42196.0,42192.0,0.00039255]
[1644677937190,0.1475,42196.0,42192.0,0.00039255]
[1644677937591,0.1475,42196.0,42183.0,0.25374365]
[1644677937592,0.21987308,42196.0,42183.0,0.25374365]
[1644677937792,0.20761997,42190.0,42183.0,0.25374365]
[1644677937993,0.20761997,42190.0,42181.0,0.3]
[1644677938191,0.20761997,42190.0,42175.0,0.3]
[1644677938595,0.0632423,42187.0,42176.0,0.08859757]
[1644677938941,0.00026179,42189.0,42177.0,0.21604484]
[1644677939149,0.20761997,42190.0,42177.0,0.21604484]
[1644677939342,0.00026179,42189.0,42178.0,0.630995]
[1644677939544,0.00026179,42192.0,42178.0,0.630995]
[1644677939842,0.00026179,42197.0,42178.0,0.3]
[1644677940041,0.06739779,42192.0,42178.0,0.3]
[1644677940442,0.22179779,42188.0,42178.0,0.3]
[1644677940641,0.22179779,42188.0,42177.0,0.21604484]
[1644677941240,0.22179779,42188.0,42180.0,0.0004526]
[1644677942041,0.00026179,42189.0,42180.0,0.0004526]
[1644677942244,0.00026179,42193.0,42177.0,0.21604484]
[1644677942444,0.00026179,42191.0,42182.0,0.00045259]
[1644677942697,0.00026179,42193.0,42182.0,0.00045259]
[1644677942893,0.05954679,42194.0,42182.0,0.00045259]
[1644677943092,0.22573115,42188.0,42182.0,0.00045259]
[1644677943492,0.22573115,42188.0,42179.0,0.07788146]
[1644677943693,0.22573115,42188.0,42183.0,0.00045259]
[1644677944794,0.22573115,42188.0,42177.0,0.21604484]
[1644677945895,0.22573115,42188.0,42178.0,0.07644765]
[1644677946093,0.22599294,42188.0,42180.0,0.0004531]
[1644677946537,0.0475,42192.0,42188.0,0.29673048]
[1644677947140,0.22802894,42191.0,42188.0,0.29673048]
[1644677947338,0.29567307,42190.0,42188.0,0.29718354]
[1644677948443,0.29567307,42190.0,42188.0,0.29673048]
[1644677948643,0.22802894,42191.0,42188.0,0.29673048]
[1644677949643,0.15954881,42193.0,42188.0,0.29673048]
[1644677949644,0.00026181,42193.0,42188.0,0.29673048]
[1644677949845,0.00026181,42197.0,42189.0,0.330995]
[1644677950048,0.00026181,42197.0,42188.0,0.29673048]
[1644677950287,0.00052048,42200.0,42188.0,0.29673048]
[1644677950489,0.00025867,42200.0,42188.0,0.29673048]
[1644677950690,0.00026181,42200.0,42195.0,0.07891859]
[1644677950985,0.00026181,42200.0,42193.0,2.78198108]
[1644677950986,0.00236181,42201.0,42193.0,2.78198108]
[1644677951187,0.00071462,42200.0,42193.0,2.78198108]
[1644677951385,0.00045281,42200.0,42193.0,2.78198108]
[1644677951586,0.00071462,42200.0,42193.0,2.78198108]
[1644677951990,0.00026181,42200.0,42193.0,2.78198108]
[1644677952186,0.00236181,42201.0,42193.0,2.78198108]
[1644677952394,0.00071464,42200.0,42193.0,2.78198108]
[1644677952687,0.00045283,42200.0,42193.0,2.78198108]
[1644677952887,0.00071464,42200.0,42193.0,2.78198108]
[1644677953089,0.00071464,42200.0,42198.0,0.2109717]
[1644677953289,0.0021,42201.0,42200.0,0.07414139]
[1644677953489,0.0021,42201.0,42193.0,2.78198108]
[1644677953490,0.00052101,42200.0,42193.0,2.78198108]
[1644677953688,0.0002592,42200.0,42193.0,2.78198108]
[1644677953935,0.00052101,42200.0,42193.0,2.78198108]
[1644677954138,0.0002592,42200.0,42193.0,2.88198108]
[1644677954439,0.00026181,42200.0,42193.0,2.92064108]
[1644677954740,0.0002592,42200.0,42193.0,2.92064108]
[1644677954936,0.00052101,42200.0,42193.0,3.10907769]
[1644677955138,0.0002592,42200.0,42193.0,2.97041769]
[1644677955336,0.00052101,42200.0,42193.0,2.97041769]
[1644677955536,0.00236181,42201.0,42193.0,0.18843661]
[1644677955737,0.00026181,42200.0,42193.0,0.18843661]
[1644677955937,0.00045366,42200.0,42193.0,0.18843661]
[1644677956137,0.00071547,42200.0,42194.0,0.21048311]
[1644677956337,0.00071547,42200.0,42193.0,0.18843661]
[1644677956837,0.00026181,42200.0,42193.0,0.18843661]
[1644677957039,0.00045366,42200.0,42193.0,0.18843661]
[1644677957242,0.00071547,42200.0,42194.0,0.330995]
[1644677957438,0.00071547,42200.0,42193.0,0.18843661]
[1644677958199,0.00026181,42200.0,42195.0,0.54552458]
[1644677958400,0.002,42207.0,42197.0,0.85]
[1644677958605,0.00501422,42210.0,42198.0,1.480995]
[1644677958800,0.00501422,42210.0,42199.0,0.0475]
[1644677959000,0.00501422,42210.0,42198.0,1.15]
[1644677959199,0.00501422,42210.0,42204.0,0.22719145]
[1644677959400,0.00501422,42210.0,42205.0,0.28554175]
[1644677959401,0.0032,42210.0,42205.0,0.28554175]
[1644677961104,0.0032,42210.0,42206.0,0.330995]
[1644677961539,0.0032,42210.0,42205.0,0.56887754]
[1644677961938,0.00346245,42210.0,42205.0,0.46887754]
[1644677962343,0.00346245,42210.0,42205.0,0.18554175]
[1644677962539,0.00346245,42210.0,42206.0,0.330995]
[1644677962740,0.0001,42209.0,42207.0,0.330995]
[1644677962940,0.0001,42209.0,42207.0,0.62165702]
[1644677963541,0.0001,42209.0,42207.0,0.52165702]
[1644677963745,0.0001,42209.0,42207.0,0.0475]
[1644677964542,0.0001,42209.0,42205.0,0.08732986]
[1644677965391,0.0001,42209.0,42195.0,1.2846]
[1644677965392,0.00035872,42209.0,42195.0,1.2846]
[1644677965594,0.00035872,42209.0,42195.0,1.7846]
[1644677965595,0.34812117,42209.0,42195.0,1.7846]
[1644677965891,0.34812117,42209.0,42195.0,0.5]
[1644677965892,0.20134417,42208.0,42195.0,0.5]
[1644677966092,0.00026245,42208.0,42195.0,0.5]
[1644677966293,0.54920289,42209.0,42200.0,0.08550317]
[1644677966294,0.22771039,42204.0,42200.0,0.08550317]
[1644677966595,0.22771039,42204.0,42190.0,0.7634]
[1644677966796,0.22771039,42204.0,42188.0,0.29673048]
[1644677966797,0.059281,42200.0,42188.0,0.29673048]
[1644677966996,0.0475,42199.0,42189.0,0.5]
[1644677967194,0.0475,42199.0,42188.0,0.29673048]
[1644677967598,0.04776245,42199.0,42190.0,0.22274837]
[1644677967795,0.0475,42199.0,42195.0,0.07236]
[1644677967998,0.0475,42199.0,42191.0,0.0004569]
[1644677967999,0.05,42196.0,42191.0,0.0004569]
[1644677968198,0.0475,42195.0,42191.0,0.0004569]
[1644677968396,0.25586237,42195.0,42191.0,0.0004569]
[1644677968797,0.0475,42195.0,42188.0,0.29673048]
[1644677969046,0.04776245,42195.0,42191.0,0.07997015]
[1644677969245,0.0475,42195.0,42191.0,0.07997015]
[1644677970547,0.0475,42195.0,42188.0,0.48845011]
[1644677970746,0.24364415,42194.0,42188.0,0.29673048]
[1644677970947,0.2439066,42194.0,42188.0,0.29673048]
[1644677971149,0.2914066,42194.0,42188.0,0.29673048]
[1644677971348,0.29114415,42194.0,42188.0,0.29673048]
[1644677972047,0.2914066,42194.0,42188.0,0.29673048]
[1644677972448,0.00026245,42194.0,42189.0,0.330995]
[1644677972708,0.00026245,42196.0,42189.0,0.00045641]
[1644677972906,0.00026245,42198.0,42189.0,0.00045641]
[1644677973099,0.00026245,42199.0,42189.0,0.00045641]
[1644677973301,0.00026245,42201.0,42189.0,0.00045641]
[1644677973501,0.00045627,42202.0,42194.0,0.07577599]
[1644677973502,0.19771364,42197.0,42194.0,0.07577599]
[1644677973700,0.20134417,42203.0,42194.0,0.07577599]
[1644677973701,0.00026245,42201.0,42194.0,0.07577599]
[1644677973900,0.00026245,42202.0,42194.0,0.07577599]
[1644677974099,0.00071875,42202.0,42194.0,0.07577599]
[1644677974300,0.0004563,42202.0,42194.0,0.07577599]
[1644677974501,0.00071875,42202.0,42194.0,0.07577599]
[1644677974701,0.22986634,42199.0,42194.0,0.07577599]
[1644677975103,0.22986634,42199.0,42196.0,0.00045638]
[1644677975303,0.00071876,42202.0,42196.0,0.00045638]
[1644677975304,0.00026245,42200.0,42196.0,0.00045638]
[1644677975507,0.00026245,42201.0,42196.0,0.00045638]
[1644677975701,0.00071876,42202.0,42196.0,0.00045638]
[1644677975902,0.00045631,42202.0,42196.0,0.00045638]